Workbook

Sheet MSU
B1: Teemu Hollanti | E1: 24.9.2002 Kannus
B2: SUPERPESIS | E2: Runkosarja | I2: Kärkilyönnit (KL), pesänvälit | P2: Runkosarja TOP-30 | U2: Ylempi loppusarja | AB2: Ylempi loppusarja TOP-10 | AG2: Play off, voitot, voittoprosentti | AL2: Arvo-ottelut | AO2: Mitalit
B3: Vuosi | C3: Sija | D3: Seura | E3: OTT | F3: KUN | G3: LÖI | H3: TOI | I3: KL | J3: 0 > 1 | K3: 1 > 2 | L3: 2 > 3 | M3: 3 > k | N3: KL-% | P3: LÖI | Q3: TOI | R3: L+T | S3: KL | U3: OTT | V3: KUN | W3: LÖI | X3: TOI | Y3: KL | Z3: KL-% | AB3: LÖI | AC3: TOI | AD3: L+T | AE3: KL | AG3: Puolivälierät | AH3: Välierät | AI3: Pronssi | AJ3: Finaalit | AL3: IL | AM3: LL | AN3: hSM | AO3: K | AP3: H | AQ3: P
B4: 2017 | C4: 7. | D4: Ura 2 | F4: suomensarja
B5: 2018 | C5: 13. | D5: YK | F5: B-poikien SM-sarja
B6: 2019 | C6: 7. | D6: Ura | F6: suomensarja
B7: 2019 | C7: 12. | D7: Ura | F7: ykköspesis
B8: 2020 | C8: 7. | D8: Ura | F8: suomensarja
B9: 2020 | C9: 8. | D9: Ura | F9: ykköspesis
B10: 2021 | C10: 7. | D10: Ura | F10: suomensarja
B11: 2021 | C11: 4. | D11: Ura | F11: ykköspesis
B12: 2022 | C12: 7. | D12: Ura | F12: suomensarja
B13: 2022 | C13: 9. | D13: Ura | F13: ykköspesis
B14: 2023 | C14: 6 | D14: Ura | F14: ykköspesis
B15: 2023 | C15: 3. | D15: KeKi | E15: 10 | F15: 0 | G15: 0 | H15: 7 | I15: 27 | J15: 24 | K15: 3 | L15: 0 | M15: 0 | N15: 65.9 % | O15: 41 | U15: 14 | V15: 1 | W15: 1 | X15: 15 | Y15: 34 | Z15: 58.6 % | AA15: 58 | AC15: 6. | AG15: 4-3 JoMa | AH15: 1-3 SoJy | AI15: 2-1 Manse PP | AQ15: 1
B16: Yhteensä | E16: =SUM(E4:E15) -> 10 | F16: 0 | G16: 0 | H16: 7 | I16: 27 | J16: 24 | K16: 3 | L16: 0 | M16: 0 | N16: =PRODUCT(I16/O16) -> 65.9 % | O16: =SUM(O4:O15) -> 41 | P16: 0-0-0 | Q16: 0-0-0 | R16: 0-0-0 | S16: 0-0-0 | U16: =SUM(U4:U15) -> 14 | V16: =SUM(V4:V15) -> 1 | W16: =SUM(W4:W15) -> 1 | X16: =SUM(X4:X15) -> 15 | Y16: =SUM(Y4:Y15) -> 34 | Z16: =PRODUCT(N22) -> 58.6 % | AB16: 0-0-0 | AC16: 0-0-0 | AD16: 0-0-0 | AE16: 0-0-0 | AG16: 1/1 | AH16: 0/1 | AI16: 1/1 | AJ16: 0/0 | AL16: =SUM(AL4:AL15) -> 0 | AM16: 0 | AN16: 0 | AO16: 0 | AP16: 0 | AQ16: 1
AG17: 100.0 % | AH17: 0.0 % | AI17: 100.0 % | AJ17: 0.0 %
B18: Pesispörssi | D18: =SUM(F16:H16)+((I16-F16-G16)/3)+(E16/3)+(AL16*25)+(AM16*25)+(AN16*10)+(AO16*25)+(AP16*20)+(AQ16*15)-15 -> 19.3
B20: URA SUPERISSA | E20: OTT | F20: KUN | G20: LÖI | H20: TOI | I20: KL | K20: ka/L | L20: ka/T | M20: ka/KL | N20: KL-% | P20: ENSIMMÄISET RUNKOSARJASSA | AG20: ENSIMMÄISET PUDOTUSPELEISSÄ | AL20: YLEISÖ
B21: Runkosarja | E21: =PRODUCT(E16) -> 10 | F21: =PRODUCT(F16) -> 0 | G21: =PRODUCT(G16) -> 0 | H21: =PRODUCT(H16) -> 7 | I21: =PRODUCT(I16) -> 27 | K21: =PRODUCT((F21+G21)/E21) -> 0.00 | L21: =PRODUCT(H21/E21) -> 0.70 | M21: =PRODUCT(I21/E21) -> 2.70 | N21: =PRODUCT(N16) -> 65.9 % | O21: =PRODUCT(O16) -> 41 | P21: Ottelu | R21: 15.05. 2023 KoU - KeKi 0-2 (0-3, 1-8) | Z21: 1. ottelu | AC21: 20 v 7 kk 21 pv | AG21: Ottelu | AH21: 1. 18.08. 2023 JoMa - KeKi 1-2 | AL21: 1631 | AN21: 20 v 10 kk 25 pv
B22: Ylempi loppusarja | E22: =PRODUCT(U16) -> 14 | F22: =PRODUCT(V16) -> 1 | G22: 1 | H22: 15 | I22: 34 | K22: =PRODUCT((F22+G22)/E22) -> 0.14 | L22: =PRODUCT(H22/E22) -> 1.07 | M22: =PRODUCT(I22/E22) -> 2.43 | N22: =PRODUCT(I22/O22) -> 58.6 % | O22: 58 | P22: Lyöty | AG22: Lyöty | AH22: 3. 20.08. 2023 KeKi - JoMa 2-0 | AL22: 2023 | AN22: 20 v 10 kk 27 pv
B23: Alempi loppusarja | P23: Tuotu | R23: 15.05. 2023 KoU - KeKi 0-2 (0-3, 1-8) | Z23: 1. ottelu | AC23: 20 v 7 kk 21 pv | AG23: Tuotu | AH23: 3. 20.08. 2023 KeKi - JoMa 2-0 | AL23: 2023 | AN23: 20 v 10 kk 27 pv
B24: KAIKKI | E24: =SUM(E21:E23) -> 24 | F24: =SUM(F21:F23) -> 1 | G24: =SUM(G21:G23) -> 1 | H24: =SUM(H21:H23) -> 22 | I24: =SUM(I21:I23) -> 61 | K24: =PRODUCT((F24+G24)/E24) -> 0.08 | L24: =PRODUCT(H24/E24) -> 0.92 | M24: =PRODUCT(I24/E24) -> 2.54 | N24: =PRODUCT(I24/O24) -> 61.6 % | O24: =SUM(O21:O23) -> 99 | P24: Kunnari | AG24: Kunnari | AH24: 3. 20.08. 2023 KeKi - JoMa 2-0 | AL24: 2023 | AN24: 20 v 10 kk 27 pv
O25: =SUM(O22:O24) -> 157
B26: Seurat | D26: Ura = Kannuksen Ura (1969), kasvattajaseura
D27: YK = Ylivieskan Kuula (1909)
D28: KeKi = Kempeleen Kiri (1915)

Sheet MYP, MSS
B1: Teemu Hollanti | E1: 24.9.2002 Kannus
B2: YKKÖSPESIS | E2: Runkosarja | L2: Runkosarja TOP-10 | Q2: Jatkosarjat | X2: SUOMENSARJA | AA2: Runkosarja | AH2: Runkosarja TOP-10 | AM2: Jatkosarjat
B3: Vuosi | C3: Sija | D3: Seura | E3: OTT | F3: KUN | G3: LÖI | H3: TOI | I3: KL | J3: KL-% | L3: LÖI | M3: TOI | N3: L+T | O3: KL | Q3: OTT | R3: KUN | S3: LÖI | T3: TOI | U3: KL | V3: KL-% | X3: Vuosi | Y3: Sija | Z3: Seura | AA3: OTT | AB3: KUN | AC3: LÖI | AD3: TOI | AE3: KL | AF3: KL-% | AH3: LÖI | AI3: TOI | AJ3: L+T | AK3: KL | AM3: OTT | AN3: KUN | AO3: LÖI | AP3: TOI | AQ3: KL | AR3: KL-%
X4: 2017 | Y4: 7. | Z4: Ura 2 | AA4: 3 | AB4: 0 | AC4: 0 | AD4: 0 | AE4: 2 | AF4: 100.0 % | AG4: 2
B5: 2018 | C5: 13. | D5: YK | F5: B-poikien SM-sarja
B6: 2019 | C6: 12. | D6: Ura | E6: 1 | F6: 0 | G6: 0 | H6: 0 | I6: 2 | J6: 66.7 % | K6: 3 | X6: 2019 | Y6: 7. | Z6: Ura | AA6: 11 | AB6: 0 | AC6: 1 | AD6: 8 | AE6: 30 | AF6: 51.7 % | AG6: 58
B7: 2020 | C7: 8. | D7: Ura | E7: 5 | F7: 0 | G7: 0 | H7: 6 | I7: 15 | J7: 50.0 % | K7: 30 | X7: 2020 | Y7: 7. | Z7: Ura 2 | AA7: 7 | AB7: 0 | AC7: 0 | AD7: 12 | AE7: 29 | AF7: 60.4 % | AG7: 48
B8: 2021 | C8: 4. | D8: Ura | E8: 19 | F8: 0 | G8: 0 | H8: 15 | I8: 65 | J8: 63.7 % | K8: 102 | Q8: 2 | R8: 0 | S8: 1 | T8: 0 | U8: 6 | V8: 50.0 % | W8: 12 | X8: 2021 | Y8: 7. | Z8: Ura 2 | AA8: 12 | AB8: 2 | AC8: 9 | AD8: 36 | AE8: 75 | AF8: 68.2 % | AG8: 110 | AI8: 4. | AJ8: 6.
B9: 2022 | C9: 9. | D9: Ura | E9: 21 | F9: 0 | G9: 1 | H9: 21 | I9: 109 | J9: 71.7 % | K9: 152 | O9: 10. | Q9: 4 | R9: 0 | S9: 0 | T9: 2 | U9: 10 | V9: 55.6 % | W9: 18 | X9: 2022 | Y9: 7. | Z9: Ura 2 | AA9: 1 | AB9: 0 | AC9: 0 | AD9: 0 | AE9: 1 | AF9: 16.7 % | AG9: 6
B10: 2023 | C10: 6. | D10: Ura | E10: 19 | F10: 2 | G10: 4 | H10: 22 | I10: 102 | J10: 71.8 % | K10: 142
B11: YHTEENSÄ | E11: =SUM(E4:E10) -> 65 | F11: =SUM(F4:F10) -> 2 | G11: =SUM(G4:G10) -> 5 | H11: =SUM(H4:H10) -> 64 | I11: =SUM(I4:I10) -> 293 | J11: =PRODUCT(I11/K11) -> 68.3 % | K11: =SUM(K4:K10) -> 429 | Q11: =SUM(Q4:Q10) -> 6 | R11: =SUM(R4:R10) -> 0 | S11: =SUM(S4:S10) -> 1 | T11: =SUM(T4:T10) -> 2 | U11: =SUM(U4:U10) -> 16 | V11: =PRODUCT(U11/W11) -> 53.3 % | W11: =SUM(W4:W10) -> 30 | X11: YHTEENSÄ | AA11: =SUM(AA4:AA10) -> 34 | AB11: =SUM(AB4:AB10) -> 2 | AC11: =SUM(AC4:AC10) -> 10 | AD11: =SUM(AD4:AD10) -> 56 | AE11: =SUM(AE4:AE10) -> 137 | AF11: =PRODUCT(AE11/AG11) -> 61.2 % | AG11: =SUM(AG4:AG10) -> 224 | AM11: =SUM(AM4:AM10) -> 0 | AN11: =SUM(AN4:AN10) -> 0 | AO11: =SUM(AO4:AO10) -> 0 | AP11: =SUM(AP4:AP10) -> 0 | AQ11: =SUM(AQ4:AQ10) -> 0 | AR11: 0.0 % | AS11: =SUM(AS4:AS10) -> 0
B13: KAIKKI OTTELUT | E13: OTT | F13: KUN | G13: LÖI | H13: TOI | I13: KL | J13: KL-% | L13: ka/L | M13: ka/T | N13: ka/l+t | O13: ka/kl | R13: Seurat | T13: Ura = Kannuksen Ura (1969), kasvattajaseura
B14: SUPERPESIS | E14: 24 | F14: 1 | G14: 1 | H14: 22 | I14: 61 | J14: 61.6 % | K14: =PRODUCT(I14/J14) -> 99.02597403 | L14: =PRODUCT((F14+G14)/E14) -> 0.08 | M14: =PRODUCT(H14/E14) -> 0.92 | N14: =PRODUCT((F14+G14+H14)/E14) -> 1.00 | O14: =PRODUCT(I14/E14) -> 2.54 | T14: YK = Ylivieskan Kuula (1909)
B15: YKKÖSPESIS | E15: =PRODUCT(E11+Q11) -> 71 | F15: =PRODUCT(F11+R11) -> 2 | G15: =PRODUCT(G11+S11) -> 6 | H15: =PRODUCT(H11+T11) -> 66 | I15: =PRODUCT(I11+U11) -> 309 | J15: =PRODUCT(I15/K15) -> 67.3 % | K15: =PRODUCT(K11+W11) -> 459 | L15: =PRODUCT((F15+G15)/E15) -> 0.11 | M15: =PRODUCT(H15/E15) -> 0.93 | N15: =PRODUCT((F15+G15+H15)/E15) -> 1.04 | O15: =PRODUCT(I15/E15) -> 4.35 | T15: KeKi = Kempeleen Kiri (1915)
B16: SUOMENSARJA | E16: =PRODUCT(AA11+AM11) -> 34 | F16: =PRODUCT(AB11+AN11) -> 2 | G16: =PRODUCT(AC11+AO11) -> 10 | H16: =PRODUCT(AD11+AP11) -> 56 | I16: =PRODUCT(AE11+AQ11) -> 137 | J16: =PRODUCT(I16/K16) -> 61.2 % | K16: =PRODUCT(AG11+AS11) -> 224 | L16: =PRODUCT((F16+G16)/E16) -> 0.35 | M16: =PRODUCT(H16/E16) -> 1.65 | N16: =PRODUCT((F16+G16+H16)/E16) -> 2.00 | O16: =PRODUCT(I16/E16) -> 4.03
B17: YHTEENSÄ | E17: =SUM(E14:E16) -> 129 | F17: =SUM(F14:F16) -> 5 | G17: 17 | H17: 144 | I17: 507 | J17: =PRODUCT(I17/K17) -> 64.8 % | K17: =SUM(K14:K16) -> 782.025974 | L17: =PRODUCT((F17+G17)/E17) -> 0.17 | M17: =PRODUCT(H17/E17) -> 1.12 | N17: =PRODUCT((F17+G17+H17)/E17) -> 1.29 | O17: =PRODUCT(I17/E17) -> 3.93

Sheet Kärkilyönnit
B1: KÄRKILYÖNNIT RUNKOSARJASSA | V1: VUOSITTAISET SIJOITUKSET TOP - 30
G2: 0 > 1 | J2: 1 > 2 | M2: 2 > 3 | P2: 3 > k | S2: Yhteensä
B3: Vuosi | C3: Sija | D3: Seura | E3: OTT | F3: KL | G3: YHT | H3: % | I3: KL | J3: YHT | K3: % | L3: KL | M3: YHT | N3: % | O3: KL | P3: YHT | Q3: % | R3: KL | S3: YHT | T3: % | V3: Vuosi | W3: Sija | X3: Seura | Y3: 0 > 1 | Z3: 1 > 2 | AA3: 2 > 3 | AB3: 3 > k | AC3: KL
B5: 2023 | C5: 4. | D5: KeKi | E5: 10 | F5: 24 | G5: 36 | H5: 66.7 % | I5: 3 | J5: 3 | K5: 100.0 % | L5: 0 | M5: 1 | N5: 0.0 % | O5: 0 | P5: 1 | Q5: 0.0 % | R5: 27 | S5: 41 | T5: 65.9 % | V5: 2023 | W5: 4. | X5: KeKi
B6: Yhteensä | E6: =SUM(E4:E5) -> 10 | F6: =SUM(F4:F5) -> 24 | G6: =SUM(G4:G5) -> 36 | H6: =PRODUCT(F6/G6) -> 66.7 % | I6: =SUM(I4:I5) -> 3 | J6: =SUM(J4:J5) -> 3 | K6: =PRODUCT(I6/J6) -> 100.0 % | L6: =SUM(L4:L5) -> 0 | M6: =SUM(M4:M5) -> 1 | N6: =PRODUCT(L6/M6) -> 0.0 % | O6: =SUM(O4:O5) -> 0 | P6: =SUM(P4:P5) -> 1 | Q6: =PRODUCT(O6/P6) -> 0.0 % | R6: =SUM(R4:R5) -> 27 | S6: =SUM(S4:S5) -> 41 | T6: =PRODUCT(R6/S6) -> 65.9 %
B8: KÄRKILYÖNNIT YLEMMISSÄ PUDOTUSPELEISSÄ | V8: VUOSITTAISET SIJOITUKSET TOP - 30
G9: 0 > 1 | J9: 1 > 2 | M9: 2 > 3 | P9: 3 > k | S9: Yhteensä
B10: Vuosi | C10: Sija | D10: Seura | E10: OTT | F10: KL | G10: YHT | H10: % | I10: KL | J10: YHT | K10: % | L10: KL | M10: YHT | N10: % | O10: KL | P10: YHT | Q10: % | R10: KL | S10: YHT | T10: % | V10: Vuosi | W10: Sija | X10: Seura | Y10: 0 > 1 | Z10: 1 > 2 | AA10: 2 > 3 | AB10: 3 > k | AC10: KL
B12: 2023 | C12: 3. | D12: KeKi | E12: 14 | F12: 28 | G12: 52 | H12: 53.9 % | I12: 2 | J12: 2 | K12: 100.0 % | L12: 2 | M12: 2 | N12: 100.0 % | O12: 2 | P12: 2 | Q12: 100.0 % | R12: 34 | S12: 58 | T12: 58.6 % | V12: 2023 | W12: 3. | X12: KeKi | Y12: 7. | AC12: 30.
B13: Yhteensä | E13: =SUM(E9:E12) -> 14 | F13: =SUM(F11:F12) -> 28 | G13: =SUM(G11:G12) -> 52 | H13: =PRODUCT(F13/G13) -> 53.8 % | I13: =SUM(I11:I12) -> 2 | J13: =SUM(J11:J12) -> 2 | K13: =PRODUCT(I13/J13) -> 100.0 % | L13: =SUM(L11:L12) -> 2 | M13: =SUM(M11:M12) -> 2 | N13: =PRODUCT(L13/M13) -> 100.0 % | O13: =SUM(O11:O12) -> 2 | P13: =SUM(P11:P12) -> 2 | Q13: =PRODUCT(O13/P13) -> 100.0 % | R13: =SUM(R11:R12) -> 34 | S13: =SUM(S11:S12) -> 58 | T13: =PRODUCT(R13/S13) -> 58.6 %
B15: KÄRKILYÖNNIT
G16: 0 > 1 | J16: 1 > 2 | M16: 2 > 3 | P16: 3 > k | S16: Yhteensä
E17: OTT | F17: KL | G17: YHT | H17: % | I17: KL | J17: YHT | K17: % | L17: KL | M17: YHT | N17: % | O17: KL | P17: YHT | Q17: % | R17: KL | S17: YHT | T17: %
B18: RUNKOSARJA | E18: =PRODUCT(E6) -> 10 | F18: 24 | G18: 36 | H18: 66.7 % | I18: 3 | J18: 3 | K18: 100.0 % | L18: 0 | M18: 1 | N18: 0.0 % | O18: 0 | P18: 1 | Q18: 0.0 % | R18: 27 | S18: 41 | T18: 65.9 %
B19: PLAY OFF | E19: =PRODUCT(E13) -> 14 | F19: =PRODUCT(F13) -> 28 | G19: 52 | H19: 53.8 % | I19: 2 | J19: 2 | K19: 100.0 % | L19: 2 | M19: 2 | N19: 100.0 % | O19: 2 | P19: 2 | Q19: 100.0 % | R19: 34 | S19: 58 | T19: 58.6 %
